[Event "Late-Titled-Tuesday-Blitz-February-20-2024"]
[Site "Chess.com"]
[Date "2024.02.20"]
[Round "11"]
[White "MKlose11"]
[Black "Zq1"]
[Result "0-1"]
[WhiteElo "2609"]
[BlackElo "2513"]
[TimeControl "180+1"]
[EndTime "16:05:45 PST"]
[Termination "Zq1 won by checkmate"]

1. e4 {[%clk 0:02:57.4]} 1... c5 {[%clk 0:03:00]} 2. Nc3 {[%clk 0:02:46.4]} 2...
g6 {[%clk 0:02:58.1]} 3. g3 {[%clk 0:02:47.3]} 3... Bg7 {[%clk 0:02:58.1]} 4.
Bg2 {[%clk 0:02:47.9]} 4... Nc6 {[%clk 0:02:58.4]} 5. d3 {[%clk 0:02:48.7]} 5...
Rb8 {[%clk 0:02:56.1]} 6. Be3 {[%clk 0:02:48.9]} 6... d6 {[%clk 0:02:55.2]} 7.
Qd2 {[%clk 0:02:45.9]} 7... b5 {[%clk 0:02:54.4]} 8. Nge2 {[%clk 0:02:46]} 8...
b4 {[%clk 0:02:54.3]} 9. Nd1 {[%clk 0:02:46.2]} 9... h5 {[%clk 0:02:53.5]} 10.
h3 {[%clk 0:02:45.3]} 10... a5 {[%clk 0:02:51.7]} 11. O-O {[%clk 0:02:45.3]}
11... Ba6 {[%clk 0:02:50.4]} 12. f4 {[%clk 0:02:44.1]} 12... Qc7 {[%clk
0:02:36.1]} 13. Rb1 {[%clk 0:02:37.5]} 13... Nf6 {[%clk 0:02:30.1]} 14. b3
{[%clk 0:02:37.1]} 14... Rd8 {[%clk 0:02:17.5]} 15. Nf2 {[%clk 0:02:30]} 15...
d5 {[%clk 0:02:05.7]} 16. exd5 {[%clk 0:02:28.5]} 16... Nxd5 {[%clk 0:02:04.8]}
17. Bxc5 {[%clk 0:02:28.5]} 17... O-O {[%clk 0:01:58.7]} 18. Ne4 {[%clk
0:02:25.8]} 18... Bb7 {[%clk 0:01:45.4]} 19. Bf2 {[%clk 0:02:23.4]} 19... e6
{[%clk 0:01:43.2]} 20. Rfe1 {[%clk 0:02:10]} 20... Nde7 {[%clk 0:01:37.5]} 21.
Qe3 {[%clk 0:02:04.1]} 21... Nd4 {[%clk 0:01:18.4]} 22. Rbc1 {[%clk 0:01:54]}
22... Nef5 {[%clk 0:01:10]} 23. Qd2 {[%clk 0:01:53.2]} 23... Nxe2+ {[%clk
0:01:05]} 24. Qxe2 {[%clk 0:01:50.2]} 24... Rc8 {[%clk 0:00:45.7]} 25. Ng5
{[%clk 0:01:31.4]} 25... Bxg2 {[%clk 0:00:40.6]} 26. Kxg2 {[%clk 0:01:30.1]}
26... Bb2 {[%clk 0:00:40.4]} 27. Rcd1 {[%clk 0:01:19.3]} 27... Bc3 {[%clk
0:00:38.6]} 28. Rf1 {[%clk 0:01:16.7]} 28... Bg7 {[%clk 0:00:36.1]} 29. Rd2
{[%clk 0:01:10.5]} 29... Bc3 {[%clk 0:00:34.5]} 30. Rdd1 {[%clk 0:01:10.7]}
30... Bg7 {[%clk 0:00:34.3]} 31. Rd2 {[%clk 0:00:40.7]} 31... Bc3 {[%clk
0:00:33.2]} 32. Rfd1 {[%clk 0:00:41.3]} 32... Bxd2 {[%clk 0:00:31.3]} 33. Rxd2
{[%clk 0:00:42.2]} 33... h4 {[%clk 0:00:29.9]} 34. g4 {[%clk 0:00:30.7]} 34...
Qxf4 {[%clk 0:00:29.3]} 35. Ne4 {[%clk 0:00:31]} 35... Nd6 {[%clk 0:00:20.4]}
36. Nxd6 {[%clk 0:00:19.6]} 36... Qxd6 {[%clk 0:00:19.8]} 37. Bxh4 {[%clk
0:00:20.5]} 37... Qd5+ {[%clk 0:00:17.1]} 38. Kh2 {[%clk 0:00:20.7]} 38... g5
{[%clk 0:00:16.7]} 39. Bg3 {[%clk 0:00:20.8]} 39... f5 {[%clk 0:00:16.7]} 40.
Be5 {[%clk 0:00:19.2]} 40... fxg4 {[%clk 0:00:14.7]} 41. hxg4 {[%clk 0:00:16.6]}
41... Rf7 {[%clk 0:00:13.8]} 42. d4 {[%clk 0:00:15.7]} 42... Rcf8 {[%clk
0:00:11.5]} 43. Kg3 {[%clk 0:00:16.6]} 43... Rh7 {[%clk 0:00:11]} 44. Qe3 {[%clk
0:00:15.2]} 44... Kf7 {[%clk 0:00:07.3]} 45. Rf2+ {[%clk 0:00:14.7]} 45... Ke8
{[%clk 0:00:07]} 46. Rxf8+ {[%clk 0:00:15.6]} 46... Kxf8 {[%clk 0:00:07]} 47.
Qf2+ {[%clk 0:00:14.7]} 47... Rf7 {[%clk 0:00:06.6]} 48. Qe3 {[%clk 0:00:13.8]}
48... Qh1 {[%clk 0:00:06.2]} 49. d5 {[%clk 0:00:10]} 49... Rf1 {[%clk
0:00:05.3]} 50. Qc5+ {[%clk 0:00:08.9]} 50... Kf7 {[%clk 0:00:04.4]} 51. dxe6+
{[%clk 0:00:07.1]} 51... Kg6 {[%clk 0:00:03.5]} 52. Bd4 {[%clk 0:00:03.8]} 52...
Rf3# {[%clk 0:00:02.8]} 0-1

[Event "Late-Titled-Tuesday-Blitz-February-20-2024"]
[Site "Chess.com"]
[Date "2024.02.20"]
[Round "11"]
[White "micke12a"]
[Black "Capablanca_Oujda_2021"]
[Result "0-1"]
[WhiteElo "2370"]
[BlackElo "2511"]
[TimeControl "180+1"]
[EndTime "16:05:49 PST"]
[Termination "Capablanca_Oujda_2021 won on time"]

1. d4 {[%clk 0:03:00.9]} 1... d5 {[%clk 0:02:58.3]} 2. Nc3 {[%clk 0:03:01]} 2...
c6 {[%clk 0:02:57.7]} 3. Bf4 {[%clk 0:03:01.3]} 3... Nf6 {[%clk 0:02:58.1]} 4.
f3 {[%clk 0:02:59.8]} 4... Bf5 {[%clk 0:02:53.9]} 5. g4 {[%clk 0:02:59.5]} 5...
Bg6 {[%clk 0:02:53.8]} 6. h4 {[%clk 0:03:00.1]} 6... h6 {[%clk 0:02:53.9]} 7. g5
{[%clk 0:03:00.7]} 7... Nh5 {[%clk 0:02:53.5]} 8. Bh2 {[%clk 0:02:52.8]} 8... e6
{[%clk 0:02:53]} 9. f4 {[%clk 0:02:43.9]} 9... Bd6 {[%clk 0:02:51.5]} 10. e3
{[%clk 0:02:36.8]} 10... Bb4 {[%clk 0:02:48]} 11. Bd3 {[%clk 0:02:32.7]} 11...
Qa5 {[%clk 0:02:45]} 12. Ne2 {[%clk 0:02:20.3]} 12... Nd7 {[%clk 0:02:38.4]} 13.
a3 {[%clk 0:02:18.8]} 13... Bd6 {[%clk 0:02:34.3]} 14. Bxg6 {[%clk 0:02:17.7]}
14... fxg6 {[%clk 0:02:34]} 15. Qd3 {[%clk 0:02:17.9]} 15... Nf8 {[%clk
0:02:24.1]} 16. Kf2 {[%clk 0:02:07.3]} 16... Qc7 {[%clk 0:02:19.8]} 17. Kg2
{[%clk 0:02:03]} 17... a6 {[%clk 0:02:06.9]} 18. Rhf1 {[%clk 0:01:54.2]} 18...
O-O-O {[%clk 0:01:53]} 19. b4 {[%clk 0:01:48.5]} 19... hxg5 {[%clk 0:01:46.4]}
20. hxg5 {[%clk 0:01:46.1]} 20... Kb8 {[%clk 0:01:36.8]} 21. Na4 {[%clk
0:01:44.5]} 21... Nh7 {[%clk 0:01:19.5]} 22. Qxg6 {[%clk 0:01:38.2]} 22... N7f6
{[%clk 0:01:14.3]} 23. gxf6 {[%clk 0:01:34.7]} 23... gxf6 {[%clk 0:01:12.2]} 24.
Qd3 {[%clk 0:01:25.6]} 24... Rdg8+ {[%clk 0:01:10]} 25. Kf3 {[%clk 0:01:20.6]}
25... e5 {[%clk 0:01:06.4]} 26. fxe5 {[%clk 0:01:12.7]} 26... fxe5 {[%clk
0:01:06.5]} 27. dxe5 {[%clk 0:01:09.3]} 27... Bxe5 {[%clk 0:00:46.7]} 28. Nf4
{[%clk 0:00:45.5]} 28... Nxf4 {[%clk 0:00:32.2]} 29. Bxf4 {[%clk 0:00:41.1]}
29... Rh3+ {[%clk 0:00:25.5]} 30. Ke2 {[%clk 0:00:29.9]} 30... Bxf4 {[%clk
0:00:19.8]} 31. Rxf4 {[%clk 0:00:24.1]} 31... Rg2+ {[%clk 0:00:16.3]} 32. Kd1
{[%clk 0:00:14.6]} 32... Rh1+ {[%clk 0:00:14.9]} 33. Rf1 {[%clk 0:00:12.9]}
33... Qh2 {[%clk 0:00:10.7]} 34. Kc1 {[%clk 0:00:01.3]} 34... Rxf1+ {[%clk
0:00:10.5]} 35. Qxf1 {[%clk 0:00:01.6]} 35... Rg1 {[%clk 0:00:11]} 36. Kb2
{[%clk 0:00:01.5]} 36... Rxf1 {[%clk 0:00:09.5]} 37. Rxf1 {[%clk 0:00:02.4]}
37... Qe5+ {[%clk 0:00:09.5]} 38. c3 {[%clk 0:00:02.3]} 38... Qxe3 {[%clk
0:00:09.6]} 39. Rf8+ {[%clk 0:00:02.7]} 39... Ka7 {[%clk 0:00:09.4]} 40. Nc5
{[%clk 0:00:03.4]} 40... Qd2+ {[%clk 0:00:08.2]} 41. Kb3 {[%clk 0:00:03.3]}
41... Qd1+ {[%clk 0:00:08.5]} 42. Kb2 {[%clk 0:00:03.4]} 42... Qd2+ {[%clk
0:00:08.4]} 43. Kb3 {[%clk 0:00:03.9]} 43... Qd1+ {[%clk 0:00:05.2]} 44. Kb2
{[%clk 0:00:03.8]} 44... Qh5 {[%clk 0:00:05.8]} 45. Rd8 {[%clk 0:00:02.4]} 45...
Kb6 {[%clk 0:00:02.3]} 46. Rd7 {[%clk 0:00:01.6]} 46... Kb5 {[%clk 0:00:01.7]}
47. Rxb7+ {[%clk 0:00:01.4]} 47... Kc4 {[%clk 0:00:02.2]} 48. Nxa6 {[%clk
0:00:01.8]} 48... Qe2+ {[%clk 0:00:02.3]} 49. Kc1 {[%clk 0:00:01.9]} 49... Kxc3
{[%clk 0:00:02.1]} 0-1

[Event "Late-Titled-Tuesday-Blitz-February-20-2024"]
[Site "Chess.com"]
[Date "2024.02.20"]
[Round "11"]
[White "ritanovikova"]
[Black "davigator"]
[Result "0-1"]
[WhiteElo "2226"]
[BlackElo "2398"]
[TimeControl "180+1"]
[EndTime "16:05:49 PST"]
[Termination "davigator won on time"]

1. e4 {[%clk 0:02:58.5]} 1... c5 {[%clk 0:01:43.5]} 2. Nc3 {[%clk 0:02:47.5]}
2... Nc6 {[%clk 0:01:43.3]} 3. d3 {[%clk 0:02:47.7]} 3... g6 {[%clk 0:01:43.3]}
4. g3 {[%clk 0:02:48.6]} 4... Bg7 {[%clk 0:01:43.6]} 5. Be3 {[%clk 0:02:49.2]}
5... d6 {[%clk 0:01:44.2]} 6. Bg2 {[%clk 0:02:49.4]} 6... Nf6 {[%clk 0:01:44.2]}
7. h3 {[%clk 0:02:47.9]} 7... O-O {[%clk 0:01:44]} 8. Qd2 {[%clk 0:02:48.3]}
8... Re8 {[%clk 0:01:44]} 9. Nge2 {[%clk 0:02:46.5]} 9... Rb8 {[%clk 0:01:43.3]}
10. O-O {[%clk 0:02:46.3]} 10... b5 {[%clk 0:01:42.8]} 11. f4 {[%clk 0:02:42.9]}
11... b4 {[%clk 0:01:43]} 12. Nd1 {[%clk 0:02:42.9]} 12... Nd7 {[%clk
0:01:41.3]} 13. g4 {[%clk 0:02:41]} 13... Bb7 {[%clk 0:01:40.5]} 14. f5 {[%clk
0:02:40.1]} 14... Nde5 {[%clk 0:01:39.7]} 15. Rb1 {[%clk 0:02:36.3]} 15... Qa5
{[%clk 0:01:38.6]} 16. a3 {[%clk 0:02:26.1]} 16... bxa3 {[%clk 0:01:38.4]} 17.
Qxa5 {[%clk 0:02:25.7]} 17... Nxa5 {[%clk 0:01:38.9]} 18. bxa3 {[%clk
0:02:26.1]} 18... Ba6 {[%clk 0:01:36.8]} 19. Ndc3 {[%clk 0:02:21.9]} 19... Nac6
{[%clk 0:01:36.2]} 20. Nd5 {[%clk 0:02:20.7]} 20... Rec8 {[%clk 0:01:17.6]} 21.
g5 {[%clk 0:01:22.7]} 21... e6 {[%clk 0:01:17]} 22. Rxb8 {[%clk 0:01:16.3]}
22... Rxb8 {[%clk 0:01:14.8]} 23. Nc7 {[%clk 0:00:44.7]} 23... Bc8 {[%clk
0:01:13.5]} 24. Ne8 {[%clk 0:00:31]} 24... Bf8 {[%clk 0:01:09.2]} 25. Nf6+
{[%clk 0:00:29.8]} 25... Kg7 {[%clk 0:01:09.6]} 26. fxe6 {[%clk 0:00:30]} 26...
Bxe6 {[%clk 0:01:06.8]} 27. d4 {[%clk 0:00:28.7]} 27... cxd4 {[%clk 0:01:06.1]}
28. Nxd4 {[%clk 0:00:29.1]} 28... Nxd4 {[%clk 0:01:06.4]} 29. Bxd4 {[%clk
0:00:30]} 29... Rc8 {[%clk 0:01:05.7]} 30. c3 {[%clk 0:00:29.4]} 30... a5 {[%clk
0:01:05]} 31. Rb1 {[%clk 0:00:28.9]} 31... h6 {[%clk 0:01:01.9]} 32. h4 {[%clk
0:00:28.6]} 32... hxg5 {[%clk 0:01:02]} 33. hxg5 {[%clk 0:00:29]} 33... Be7
{[%clk 0:01:02.1]} 34. Rf1 {[%clk 0:00:28.1]} 34... Bc4 {[%clk 0:00:59.3]} 35.
Rf2 {[%clk 0:00:27.5]} 35... Rb8 {[%clk 0:00:58.4]} 36. Kh2 {[%clk 0:00:24.7]}
36... Rb3 {[%clk 0:00:56.3]} 37. a4 {[%clk 0:00:23.9]} 37... Ra3 {[%clk
0:00:54.3]} 38. Bxe5 {[%clk 0:00:23.4]} 38... dxe5 {[%clk 0:00:53.7]} 39. Nd7
{[%clk 0:00:23.2]} 39... Bxg5 {[%clk 0:00:52.7]} 40. Nxe5 {[%clk 0:00:22]} 40...
Be6 {[%clk 0:00:52.6]} 41. c4 {[%clk 0:00:20]} 41... Rxa4 {[%clk 0:00:52.1]} 42.
c5 {[%clk 0:00:19.5]} 42... Be3 {[%clk 0:00:50.1]} 43. Rf1 {[%clk 0:00:18.7]}
43... Bxc5 {[%clk 0:00:49.5]} 44. Nd3 {[%clk 0:00:16.8]} 44... Bd6+ {[%clk
0:00:49]} 45. Kg1 {[%clk 0:00:15.9]} 45... Bg3 {[%clk 0:00:47.9]} 46. Nf4 {[%clk
0:00:14.1]} 46... Bc4 {[%clk 0:00:46.8]} 47. Rf3 {[%clk 0:00:12.7]} 47... Bh4
{[%clk 0:00:45.9]} 48. Kh2 {[%clk 0:00:12.7]} 48... Bf6 {[%clk 0:00:45.2]} 49.
Nh3 {[%clk 0:00:11.4]} 49... Be5+ {[%clk 0:00:45.2]} 50. Kg1 {[%clk 0:00:10.7]}
50... Ra1+ {[%clk 0:00:45.3]} 51. Kf2 {[%clk 0:00:10.7]} 51... Ra2+ {[%clk
0:00:45.7]} 52. Kg1 {[%clk 0:00:10.4]} 52... a4 {[%clk 0:00:46.2]} 53. Ng5
{[%clk 0:00:07.4]} 53... a3 {[%clk 0:00:46]} 54. Nxf7 {[%clk 0:00:06.7]} 54...
Bxf7 {[%clk 0:00:44.9]} 55. Bf1 {[%clk 0:00:05.6]} 55... Ra1 {[%clk 0:00:43.8]}
56. Kg2 {[%clk 0:00:05.4]} 56... a2 {[%clk 0:00:44]} 57. Rf2 {[%clk 0:00:04]}
57... Re1 {[%clk 0:00:42.9]} 58. Rxf7+ {[%clk 0:00:01.9]} 58... Kxf7 {[%clk
0:00:42.4]} 59. Bc4+ {[%clk 0:00:02.8]} 59... Kf6 {[%clk 0:00:42.9]} 60. Bxa2
{[%clk 0:00:03.7]} 60... Re2+ {[%clk 0:00:43.6]} 0-1

[Event "Late-Titled-Tuesday-Blitz-February-20-2024"]
[Site "Chess.com"]
[Date "2024.02.20"]
[Round "11"]
[White "DefiantChair"]
[Black "maroro07"]
[Result "1-0"]
[WhiteElo "2622"]
[BlackElo "2452"]
[TimeControl "180+1"]
[EndTime "16:05:50 PST"]
[Termination "DefiantChair won by resignation"]

1. e4 {[%clk 0:03:00.9]} 1... c5 {[%clk 0:02:58.9]} 2. Nf3 {[%clk 0:03:00.5]}
2... Nc6 {[%clk 0:02:58.2]} 3. d4 {[%clk 0:03:00.9]} 3... cxd4 {[%clk
0:02:57.3]} 4. Nxd4 {[%clk 0:03:01.8]} 4... e6 {[%clk 0:02:52.7]} 5. Nc3 {[%clk
0:03:01.9]} 5... Qc7 {[%clk 0:02:51.6]} 6. Be3 {[%clk 0:03:02]} 6... a5 {[%clk
0:02:51.3]} 7. Ndb5 {[%clk 0:02:54.1]} 7... Qd8 {[%clk 0:02:44.1]} 8. Bf4 {[%clk
0:02:46.4]} 8... e5 {[%clk 0:02:36]} 9. Nd5 {[%clk 0:02:46.1]} 9... Bb4+ {[%clk
0:02:28.3]} 10. Bd2 {[%clk 0:02:44.1]} 10... Bxd2+ {[%clk 0:02:21.4]} 11. Qxd2
{[%clk 0:02:45]} 11... Kf8 {[%clk 0:02:20.5]} 12. O-O-O {[%clk 0:02:42.4]} 12...
Nf6 {[%clk 0:02:14.3]} 13. f3 {[%clk 0:02:29.9]} 13... d6 {[%clk 0:02:00.9]} 14.
Nxf6 {[%clk 0:02:23.4]} 14... Qxf6 {[%clk 0:02:01.8]} 15. Qxd6+ {[%clk 0:02:23]}
15... Qxd6 {[%clk 0:02:00.8]} 16. Nxd6 {[%clk 0:02:23.9]} 16... a4 {[%clk
0:01:42.5]} 17. a3 {[%clk 0:02:12.4]} 17... Ke7 {[%clk 0:01:31.6]} 18. Nc4
{[%clk 0:02:01.8]} 18... Be6 {[%clk 0:01:25.8]} 19. Nb6 {[%clk 0:02:01.4]} 19...
Ra5 {[%clk 0:01:26.4]} 20. c3 {[%clk 0:01:58.9]} 20... f6 {[%clk 0:00:52]} 21.
Bc4 {[%clk 0:01:56]} 21... Rd8 {[%clk 0:00:42.1]} 22. Bxe6 {[%clk 0:01:53.6]}
22... Kxe6 {[%clk 0:00:43]} 23. Nd5 {[%clk 0:01:53]} 23... Rc8 {[%clk
0:00:34.9]} 24. Kb1 {[%clk 0:01:51.9]} 24... Rb5 {[%clk 0:00:25.3]} 25. Rd3
{[%clk 0:01:48.5]} 25... Na5 {[%clk 0:00:21.6]} 26. Nb4 {[%clk 0:01:44.5]} 26...
Nc4 {[%clk 0:00:21]} 27. Rhd1 {[%clk 0:01:43.3]} 27... Rc7 {[%clk 0:00:19.6]}
28. Rd8 {[%clk 0:01:41.1]} 28... f5 {[%clk 0:00:16.4]} 29. exf5+ {[%clk
0:01:34.8]} 29... Kxf5 {[%clk 0:00:17.3]} 30. Re1 {[%clk 0:01:33.1]} 30... h5
{[%clk 0:00:13.6]} 31. Kc2 {[%clk 0:01:27.1]} 31... Rbc5 {[%clk 0:00:08.7]} 32.
Rf8+ {[%clk 0:01:24.1]} 32... Kg6 {[%clk 0:00:06]} 33. Rd8 {[%clk 0:01:18.9]}
33... Nxa3+ {[%clk 0:00:05.5]} 34. bxa3 {[%clk 0:01:16.1]} 34... Rxc3+ {[%clk
0:00:05.9]} 35. Kb2 {[%clk 0:01:16.5]} 35... Rb3+ {[%clk 0:00:04.4]} 36. Ka2
{[%clk 0:01:09.2]} 36... Rcc3 {[%clk 0:00:05]} 37. Rd6+ {[%clk 0:01:05.4]} 37...
Kg5 {[%clk 0:00:04.1]} 38. Rxe5+ {[%clk 0:01:01.2]} 38... Kf4 {[%clk 0:00:03.7]}
39. Re4+ {[%clk 0:00:56.5]} 39... Kf5 {[%clk 0:00:03.8]} 40. Rd5+ {[%clk
0:00:41.5]} 40... Kg6 {[%clk 0:00:03.8]} 41. Rd2 {[%clk 0:00:37.8]} 41... Rxa3+
{[%clk 0:00:03.1]} 42. Kb1 {[%clk 0:00:38.2]} 42... Rab3+ {[%clk 0:00:02.3]} 43.
Rb2 {[%clk 0:00:38.5]} 43... Ra3 {[%clk 0:00:01.8]} 44. Nd5 {[%clk 0:00:37.1]}
44... Rd3 {[%clk 0:00:02]} 45. Nf4+ {[%clk 0:00:35.7]} 45... Kf5 {[%clk
0:00:01.9]} 46. Nxd3 {[%clk 0:00:36.6]} 46... Rxd3 {[%clk 0:00:02]} 47. Rxa4
{[%clk 0:00:36.6]} 47... Rd1+ {[%clk 0:00:01.5]} 48. Kc2 {[%clk 0:00:35.7]}
48... Rh1 {[%clk 0:00:02.4]} 49. h3 {[%clk 0:00:35.5]} 49... Rg1 {[%clk
0:00:02.2]} 50. Kd3 {[%clk 0:00:35.7]} 50... Kg6 {[%clk 0:00:02.1]} 51. Rb6+
{[%clk 0:00:34.4]} 51... Kh7 {[%clk 0:00:02.7]} 52. Ra2 {[%clk 0:00:33.2]} 52...
Rxg2 {[%clk 0:00:03.2]} 53. Rxg2 {[%clk 0:00:32.8]} 53... Kh8 {[%clk 0:00:03.9]}
54. Rxb7 {[%clk 0:00:33]} 54... h4 {[%clk 0:00:04.8]} 55. Rg4 {[%clk 0:00:28.9]}
55... g5 {[%clk 0:00:03.4]} 56. Ra4 {[%clk 0:00:28.5]} 1-0

[Event "Late-Titled-Tuesday-Blitz-February-20-2024"]
[Site "Chess.com"]
[Date "2024.02.20"]
[Round "11"]
[White "Atousa"]
[Black "FredddieCroderg"]
[Result "1/2-1/2"]
[WhiteElo "2454"]
[BlackElo "2237"]
[TimeControl "180+1"]
[EndTime "16:05:52 PST"]
[Termination "Game drawn - insufficient material"]

1. e4 {[%clk 0:02:57.9]} 1... c6 {[%clk 0:02:35.2]} 2. d4 {[%clk 0:02:56.5]}
2... d5 {[%clk 0:02:32.1]} 3. exd5 {[%clk 0:02:57.4]} 3... cxd5 {[%clk
0:02:30.8]} 4. Bd3 {[%clk 0:02:58.3]} 4... Nc6 {[%clk 0:02:29.1]} 5. c3 {[%clk
0:02:59.2]} 5... Qc7 {[%clk 0:02:28.2]} 6. Ne2 {[%clk 0:02:59.6]} 6... Bg4
{[%clk 0:02:27.2]} 7. f3 {[%clk 0:03:00.2]} 7... Bd7 {[%clk 0:02:24.6]} 8. Bf4
{[%clk 0:03:00.4]} 8... e5 {[%clk 0:02:24.1]} 9. dxe5 {[%clk 0:03:01.3]} 9...
Nxe5 {[%clk 0:02:23.5]} 10. O-O {[%clk 0:03:02.2]} 10... Bd6 {[%clk 0:02:19.8]}
11. Kh1 {[%clk 0:03:00.9]} 11... Nf6 {[%clk 0:02:16.4]} 12. Bxe5 {[%clk
0:03:01.3]} 12... Bxe5 {[%clk 0:02:15.4]} 13. f4 {[%clk 0:03:02.2]} 13... Bd6
{[%clk 0:02:14.3]} 14. Nd2 {[%clk 0:03:02.8]} 14... O-O-O {[%clk 0:02:13.2]} 15.
Nb3 {[%clk 0:03:03]} 15... Rde8 {[%clk 0:02:11.6]} 16. Nbd4 {[%clk 0:03:02.2]}
16... Ne4 {[%clk 0:02:09.6]} 17. Nb5 {[%clk 0:02:56.3]} 17... Bxb5 {[%clk
0:02:08.1]} 18. Bxb5 {[%clk 0:02:57.2]} 18... Re6 {[%clk 0:02:05.3]} 19. Qxd5
{[%clk 0:02:54.4]} 19... a6 {[%clk 0:01:58.5]} 20. Bxa6 {[%clk 0:02:46.4]} 20...
bxa6 {[%clk 0:01:56.3]} 21. Qa8+ {[%clk 0:02:46.5]} 21... Qb8 {[%clk 0:01:54.3]}
22. Qxa6+ {[%clk 0:02:46.4]} 22... Qb7 {[%clk 0:01:53.8]} 23. Qc4+ {[%clk
0:02:46.6]} 23... Qc7 {[%clk 0:01:52.6]} 24. Qd5 {[%clk 0:02:37.7]} 24... Nf6
{[%clk 0:01:47.3]} 25. Qf3 {[%clk 0:02:20.7]} 25... Rhe8 {[%clk 0:01:43.8]} 26.
Nd4 {[%clk 0:02:19.7]} 26... Re3 {[%clk 0:01:42.1]} 27. Qa8+ {[%clk 0:02:19]}
27... Qb8 {[%clk 0:01:40.3]} 28. Qc6+ {[%clk 0:02:19.3]} 28... Qc7 {[%clk
0:01:39.5]} 29. Qa4 {[%clk 0:02:02.4]} 29... Bc5 {[%clk 0:01:33.4]} 30. Nc6
{[%clk 0:01:40.8]} 30... Kb7 {[%clk 0:01:25.4]} 31. Ne5 {[%clk 0:01:34]} 31...
R8xe5 {[%clk 0:01:17.5]} 32. fxe5 {[%clk 0:01:33.6]} 32... Qxe5 {[%clk
0:01:14.7]} 33. Rad1 {[%clk 0:01:20.3]} 33... h5 {[%clk 0:01:08.4]} 34. Qb3+
{[%clk 0:01:04.9]} 34... Kc8 {[%clk 0:01:00.4]} 35. Qxf7 {[%clk 0:01:03.4]}
35... Ng4 {[%clk 0:00:37.2]} 36. Qf4 {[%clk 0:00:45.5]} 36... Qxf4 {[%clk
0:00:32.8]} 37. Rxf4 {[%clk 0:00:46.4]} 37... Re2 {[%clk 0:00:31.2]} 38. Rc4
{[%clk 0:00:37.3]} 38... Nf2+ {[%clk 0:00:28.2]} 39. Kg1 {[%clk 0:00:37.8]}
39... Nxd1+ {[%clk 0:00:27.6]} 40. Rxc5+ {[%clk 0:00:38.3]} 40... Kb7 {[%clk
0:00:27.4]} 41. g3 {[%clk 0:00:31]} 41... Rxb2 {[%clk 0:00:25.7]} 42. Rxh5
{[%clk 0:00:29.1]} 42... Rxa2 {[%clk 0:00:24.9]} 43. Rg5 {[%clk 0:00:29.2]}
43... Nxc3 {[%clk 0:00:23.3]} 44. Rxg7+ {[%clk 0:00:29.3]} 44... Kc6 {[%clk
0:00:22.9]} 45. h4 {[%clk 0:00:29.7]} 45... Kd6 {[%clk 0:00:21]} 46. h5 {[%clk
0:00:28.8]} 46... Ne4 {[%clk 0:00:19.3]} 47. h6 {[%clk 0:00:26.5]} 47... Nf6
{[%clk 0:00:18.8]} 48. h7 {[%clk 0:00:19.2]} 48... Nxh7 {[%clk 0:00:17.6]} 49.
Rxh7 {[%clk 0:00:20.1]} 49... Ke6 {[%clk 0:00:16.7]} 50. Rh4 {[%clk 0:00:10.3]}
50... Kf6 {[%clk 0:00:16.3]} 51. Rf4+ {[%clk 0:00:10.3]} 51... Kg5 {[%clk
0:00:15.8]} 52. Re4 {[%clk 0:00:10.3]} 52... Kf5 {[%clk 0:00:13.7]} 53. Rb4
{[%clk 0:00:09.8]} 53... Kg5 {[%clk 0:00:13.6]} 54. Kf1 {[%clk 0:00:10.2]} 54...
Kf5 {[%clk 0:00:13.2]} 55. Rf4+ {[%clk 0:00:09.3]} 55... Kg5 {[%clk 0:00:13.2]}
56. Kg1 {[%clk 0:00:09.6]} 56... Kg6 {[%clk 0:00:12.8]} 57. g4 {[%clk
0:00:08.3]} 57... Kg5 {[%clk 0:00:12.7]} 58. Rc4 {[%clk 0:00:08.5]} 58... Kg6
{[%clk 0:00:12.3]} 59. Kf1 {[%clk 0:00:08.8]} 59... Kg5 {[%clk 0:00:12.1]} 60.
Ke1 {[%clk 0:00:09.3]} 60... Rg2 {[%clk 0:00:10.4]} 61. Kf1 {[%clk 0:00:09.4]}
61... Rxg4 {[%clk 0:00:10.5]} 62. Rxg4+ {[%clk 0:00:09.2]} 62... Kxg4 {[%clk
0:00:10.8]} 1/2-1/2